bitfinex/quotes_SOLUSD_20220216
["timestamp","ask_amount","ask_price","bid_price","bid_amount"]
[1645018670870,48.3642,100.88,100.76,0.25]
[1645018671067,47.42164463,100.87,100.76,0.25]
[1645018671268,53.42164463,100.87,100.76,0.25]
[1645018671868,0.25,100.86,100.77,39.09679079]
[1645018672068,0.25,100.86,100.76,14.8778]
[1645018672269,2.44017527,100.85,100.73,98.08]
[1645018672667,0.25,100.86,100.73,98.08]
[1645018672870,2.44017527,100.85,100.73,98.08]
[1645018673067,46.18384812,100.84,100.74,47.33037399]
[1645018673972,46.18384812,100.84,100.74,62.21317399]
[1645018674272,2.44017527,100.83,100.74,47.33037399]
[1645018674473,42.08656195,100.82,100.74,145.41037399]
[1645018674871,42.08656195,100.82,100.74,47.33037399]
[1645018676572,42.08656195,100.82,100.74,145.41037399]
[1645018677379,42.08656195,100.82,100.75,0.25]
[1645018677580,14.8851,100.85,100.75,0.25]
[1645018677883,4.96,100.91,100.76,254.95]
[1645018678081,24.0509,100.92,100.76,262.16904149]
[1645018678279,24.0509,100.92,100.78,98.08]
[1645018678481,47.23140992,100.91,100.8,98.08]
[1645018678681,47.23140992,100.91,100.83,14.8679]
[1645018678883,47.23140992,100.91,100.83,22.0189]
[1645018679280,47.23140992,100.91,100.83,14.8679]
[1645018679881,47.23140992,100.91,100.82,39.04930462]
[1645018680083,6.0,100.9,100.82,39.04930462]
[1645018680281,36.71746318,100.89,100.82,39.04930462]
[1645018680489,6.0,100.9,100.82,39.04930462]
[1645018681582,6.0,100.9,100.83,0.25]
[1645018681981,46.84089778,100.89,100.83,0.25]
[1645018682282,6.0,100.9,100.83,0.25]
[1645018682484,6.0,100.9,100.82,39.04930462]
[1645018682885,63.22657527,100.94,100.82,39.04930462]
[1645018683083,50.47728675,100.93,100.82,39.04930462]
[1645018683285,14.8748,100.92,100.82,39.04930462]
[1645018683485,40.88344547,100.91,100.82,39.04930462]
[1645018683889,0.25,100.9,100.78,14.09500991]
[1645018684187,12.35,100.89,100.73,11.87]
[1645018684389,0.48,100.87,100.72,126.4562]
[1645018684587,12.35,100.86,100.72,76.8497]
[1645018684787,51.18988125,100.86,100.73,34.30341279]
[1645018684990,66.20554645,100.86,100.73,34.30341279]
[1645018685289,46.35211015,100.84,100.73,34.30341279]
[1645018685491,79.83621015,100.84,100.73,49.18851279]
[1645018685690,53.07911015,100.84,100.73,49.18851279]
[1645018685890,46.35211015,100.84,100.73,49.18851279]
[1645018686090,46.35211015,100.84,100.73,147.26851279]
[1645018686393,46.35211015,100.84,100.74,0.25]
[1645018686992,46.35211015,100.84,100.73,34.30341279]
[1645018687993,46.35211015,100.84,100.75,34.04102458]
[1645018689094,46.35211015,100.84,100.76,0.25]
[1645018689693,46.35211015,100.84,100.77,34.30341279]
[1645018690095,23.1954,100.86,100.77,34.30341279]
[1645018690595,23.1954,100.86,100.77,132.38341279]
[1645018690995,14.8812,100.87,100.77,132.38341279]
[1645018691296,45.23428674,100.86,100.78,0.25]
[1645018691696,47.5375,100.88,100.78,0.25]
[1645018692299,0.25,100.87,100.77,132.38341279]
[1645018692700,38.27545774,100.87,100.79,98.08]
[1645018692900,38.27545774,100.87,100.79,34.04102458]
[1645018693902,38.27545774,100.87,100.79,14.8772]
[1645018694109,38.27545774,100.87,100.77,98.08]
[1645018694903,53.15595774,100.87,100.78,49.76307828]
[1645018695108,37.77545774,100.87,100.78,147.84307828]
[1645018695729,37.77545774,100.87,100.79,0.25]
[1645018696030,52.65545774,100.87,100.78,34.88427828]
[1645018697233,52.65545774,100.87,100.78,49.76367828]
[1645018697434,37.77545774,100.87,100.78,49.76367828]
[1645018697737,37.77545774,100.87,100.78,147.84367828]
[1645018698740,37.77545774,100.87,100.79,0.25]
[1645018698937,23.0997,100.88,100.8,112.9554]
[1645018699337,23.0997,100.88,100.81,0.25]
[1645018700037,64.51045291,100.88,100.81,33.96015909]
[1645018700237,41.41075291,100.88,100.81,33.96015909]
[1645018700638,14.8765,100.89,100.81,33.96015909]
[1645018700839,14.8744,100.91,100.81,146.91475909]
[1645018701240,0.25,100.9,100.81,146.91475909]
[1645018701641,41.73592837,100.9,100.81,146.91475909]
[1645018703944,56.61042837,100.9,100.81,48.58475909]
[1645018706046,15.1245,100.9,100.82,113.2032]
[1645018706247,37.7073,100.92,100.82,113.2032]
[1645018707045,38.53787451,100.91,100.83,132.96427828]
[1645018707446,38.53787451,100.91,100.84,14.8706]
[1645018707648,38.53787451,100.91,100.85,33.71015909]
[1645018708148,38.53787451,100.91,100.84,14.8706]
[1645018708349,53.41037451,100.91,100.84,14.8706]
[1645018708550,53.41037451,100.91,100.82,14.8736]
[1645018708551,55.85054978,100.91,100.82,14.8736]
[1645018708749,0.25,100.9,100.77,58.6466]
[1645018708947,0.25,100.9,100.78,39.48043664]
[1645018709150,0.25,100.9,100.79,98.08]
[1645018709458,49.16400346,100.89,100.8,142.57050073]
[1645018710048,49.16400346,100.89,100.8,142.32050073]
[1645018711852,49.16400346,100.89,100.81,0.25]
[1645018712050,0.25,100.9,100.82,112.9542]
[1645018712449,0.25,100.9,100.83,0.25]
[1645018713250,0.25,100.9,100.83,39.48043664]
[1645018713451,0.25,100.9,100.83,137.56043664]
[1645018713748,60.9425541,100.91,100.83,137.56043664]
[1645018713949,60.9425541,100.91,100.84,14.8717]
[1645018714151,32.00167527,100.93,100.85,127.44400073]
[1645018714354,20.8698,100.93,100.85,127.69400073]
[1645018714563,6.0,100.93,100.85,127.69400073]
[1645018715250,39.2877763,100.92,100.85,127.69400073]
[1645018715651,39.2877763,100.92,100.85,14.8698]
[1645018716055,39.2877763,100.92,100.79,131.1629]
[1645018716253,39.2877763,100.92,100.79,119.2929]
[1645018716652,64.9581763,100.92,100.82,49.5692]
[1645018716853,0.25,100.91,100.82,147.6492]
[1645018717057,0.25,100.91,100.83,26.22555554]
[1645018718858,15.1221,100.91,100.84,14.8721]
[1645018719058,44.4863694,100.9,100.84,14.8721]
[1645018719661,44.4863694,100.9,100.85,42.36888183]
[1645018720058,20.8698,100.93,100.85,57.23938183]
[1645018720463,0.25,100.92,100.85,57.23938183]
[1645018721060,2.44017527,100.95,100.86,98.08]
[1645018721264,124.40105063,100.96,100.88,112.9465]
[1645018721461,23.2563,100.97,100.88,112.9465]
[1645018721662,23.2563,100.97,100.89,0.25]
[1645018721863,2.75405063,100.99,100.89,0.25]
[1645018722071,43.75155867,100.99,100.9,98.08]
[1645018722262,43.75155867,100.99,100.91,135.54477856]
[1645018722462,43.75155867,100.99,100.91,150.65447856]
[1645018722663,43.75155867,100.99,100.91,150.40447856]
[1645018722865,14.8583,101.0,100.92,0.25]
[1645018723064,2.75405063,101.01,100.92,0.25]
[1645018723270,50.30865063,101.02,100.92,0.25]
[1645018723870,37.11506557,101.01,100.92,0.25]
[1645018724073,14.8586,101.0,100.94,14.857]
[1645018724271,47.03245786,100.99,100.94,45.98665881]
[1645018724675,6.0,100.99,100.94,45.98665881]
[1645018724980,14.8586,101.0,100.94,45.98665881]
[1645018725373,62.4104,101.02,100.94,45.98665881]
[1645018725780,40.09659567,101.01,100.94,45.98665881]
[1645018726174,48.94777094,101.01,100.94,14.857]
[1645018726375,48.94777094,101.01,100.93,14.8595]
[1645018726575,68.75417094,101.01,100.9,49.5315]
[1645018727179,68.75417094,101.01,100.91,42.98801306]
[1645018727584,68.75417094,101.01,100.91,57.85001306]
[1645018727779,74.60417094,101.01,100.91,57.85001306]
[1645018728579,172.68417094,101.01,100.91,57.85001306]
[1645018728978,177.63617094,101.01,100.91,57.85001306]
[1645018729699,177.63617094,101.01,100.89,14.8643]
[1645018729896,177.63617094,101.01,100.88,74.3757]
[1645018729897,189.50617094,101.01,100.86,49.5499]
[1645018730104,101.31405063,100.99,100.84,22.8912]
[1645018730298,14.8711,100.95,100.84,22.8912]
[1645018730700,48.4861921,100.94,100.85,38.33710013]
[1645018730900,2.44017527,100.94,100.85,136.41710013]
[1645018731100,0.00146539,100.95,100.87,156.83]
[1645018731301,27.43705063,101.02,100.89,98.08]
[1645018731499,24.683,101.02,100.89,98.08]
[1645018731700,24.683,101.02,100.9,0.25]
[1645018731898,24.683,101.02,100.93,14.8581]
[1645018732102,35.85138797,101.01,100.93,14.8581]
[1645018732499,35.85138797,101.01,100.87,58.4324]
[1645018732500,98.08,101.0,100.87,58.4324]
[1645018732705,6.0,100.99,100.86,11.87]
[1645018732905,33.7822,100.99,100.84,22.8912]
[1645018733102,48.77212199,100.98,100.9,31.02517832]
[1645018733802,28.8292,100.99,100.9,31.02517832]
[1645018734607,37.75510566,100.98,100.9,31.02517832]
[1645018734803,15.1137,100.97,100.9,45.88857832]
[1645018735004,40.09297458,100.96,100.9,45.88857832]
[1645018737606,15.1137,100.97,100.9,45.88857832]
[1645018738507,14.8637,100.97,100.9,45.88857832]
[1645018738710,45.44640484,100.97,100.9,45.88857832]
[1645018739109,45.44640484,100.97,100.88,14.8652]
[1645018739908,14.8671,100.95,100.88,14.8652]
[1645018740110,35.49145785,100.94,100.89,40.30699112]
[1645018740311,14.8671,100.95,100.89,138.38699112]
[1645018740508,10.8,100.97,100.89,153.25149112]
[1645018740809,10.8,100.97,100.9,0.25]
[1645018741009,14.8649,100.96,100.9,0.25]
[1645018741211,37.25858456,100.98,100.89,40.30699112]
[1645018741609,37.25858456,100.98,100.89,153.25079112]
[1645018741809,37.25858456,100.98,100.9,0.25]
[1645018742016,48.05858456,100.98,100.9,0.25]
[1645018742816,0.25,100.97,100.91,14.8606]
[1645018743010,0.25,100.97,100.9,0.25]
[1645018743211,0.25,100.97,100.89,40.30699112]
[1645018743413,0.25,100.97,100.84,22.8912]
[1645018743611,0.25,100.97,100.86,0.25]
[1645018744011,11.05,100.97,100.86,0.25]
[1645018744411,38.54794977,100.96,100.86,135.02020072]
[1645018744610,53.41324977,100.96,100.88,29.46406138]
[1645018745812,53.41324977,100.96,100.88,44.32936138]
[1645018747512,53.41324977,100.96,100.88,142.40936138]
[1645018747919,53.41324977,100.96,100.89,0.25]
[1645018748114,53.41324977,100.96,100.9,36.00841761]
[1645018748517,14.8653,100.96,100.9,36.00841761]
[1645018748716,14.8626,100.97,100.9,36.00841761]
[1645018749515,24.1757,100.98,100.9,50.87101761]
[1645018749717,24.1757,100.98,100.9,148.95101761]
[1645018749917,43.689,100.99,100.91,0.25]
[1645018750118,37.689,100.99,100.91,0.25]
[1645018751517,37.689,100.99,100.92,14.8593]
[1645018751722,37.689,100.99,100.93,30.14584449]
[1645018752320,2.75405063,101.01,100.93,128.22584449]
[1645018752521,27.61225063,101.02,100.94,0.25]
[1645018752721,2.75405063,101.02,100.94,0.25]
[1645018752922,2.75405063,101.03,100.94,0.25]
[1645018753126,25.31875063,101.04,100.94,0.25]
[1645018753323,73.43912253,101.04,100.94,0.25]
[1645018753923,2.75405063,101.04,100.96,98.08]
[1645018754124,2.75405063,101.05,100.96,98.08]
[1645018754324,2.75405063,101.05,100.97,0.25]
[1645018754924,2.75405063,101.05,100.99,30.14584449]
[1645018755127,2.25405063,101.06,100.99,128.22584449]
[1645018755323,0.25,101.05,100.99,128.22584449]
[1645018755525,0.25,101.05,100.99,30.14584449]
[1645018755924,15.1009,101.05,100.99,30.14584449]
[1645018756124,17.04107527,101.05,100.95,49.5057]
[1645018756327,17.04107527,101.05,100.96,0.25]
[1645018756525,17.04107527,101.05,100.94,23.1311]
[1645018756730,137.11475236,101.05,100.91,60.74]
[1645018756927,137.5621,101.04,100.89,24.6225]
[1645018757126,14.8605,101.0,100.9,43.05294605]
[1645018757328,49.6704148,100.99,100.9,43.05294605]
[1645018757530,52.11059007,100.99,100.9,43.05294605]
[1645018757729,8.44017527,100.99,100.9,141.13294605]
[1645018757930,2.44017527,101.01,100.9,141.13294605]
[1645018758131,25.33737527,101.03,100.9,141.13294605]
[1645018758629,25.08737527,101.03,100.92,98.08]
[1645018758832,57.55845595,101.03,100.93,121.18131605]
[1645018759431,22.6472,101.03,100.94,0.25]
[1645018759831,37.5017,101.03,100.95,14.8545]
[1645018760232,37.5017,101.03,100.96,41.05014086]
[1645018760430,36.99630341,101.02,100.96,41.05014086]
[1645018760835,22.6472,101.03,100.96,41.05014086]
[1645018761036,0.25,101.02,100.96,41.05014086]
[1645018761233,11.05,101.02,100.96,41.05014086]
[1645018761933,10.8,101.02,100.96,139.13014086]
[1645018762233,2.44017527,101.05,100.97,0.25]
[1645018762435,138.26791681,101.08,100.97,0.25]
[1645018762634,2.44017527,101.07,100.97,0.25]
[1645018762834,2.44017527,101.07,100.98,146.95]
[1645018763032,59.55683418,101.08,101.02,14.8456]
[1645018763458,59.55683418,101.08,101.03,25.10412124]
[1645018763859,34.90063418,101.08,101.03,25.10412124]
[1645018764058,0.11171681,101.08,101.03,25.10412124]
[1645018765760,0.11171681,101.08,101.03,138.02822124]
[1645018766663,14.44082752,101.1,101.03,138.02822124]
[1645018766861,14.44082752,101.1,101.04,0.25]
[1645018767061,14.44082752,101.1,101.06,98.08]
[1645018767262,14.44082752,101.1,101.03,25.10412124]
[1645018767467,70.40382779,101.1,101.03,25.10412124]
[1645018767763,35.41235846,101.08,100.99,47.4827]
[1645018767964,50.25905846,101.08,101.01,14.8454]
[1645018768162,0.25,101.07,101.01,14.8454]
[1645018768366,6.895,101.07,101.01,14.8454]
[1645018769366,64.12967966,101.07,101.0,14.8476]
[1645018769566,66.56985493,101.07,100.96,97.6776]
[1645018769766,66.56985493,101.07,100.96,48.1806]
[1645018769965,4.949,101.06,100.91,11.87]
[1645018770167,17.299,101.06,100.9,11.87]
[1645018770366,67.41500296,101.05,100.92,139.40080902]
[1645018770764,2.44017527,101.04,100.92,139.40080902]
[1645018770966,38.15238558,101.02,100.92,139.40080902]
[1645018771372,38.15238558,101.02,100.93,0.25]
[1645018771766,38.15238558,101.02,100.95,24.83345308]
[1645018772166,25.6536,101.04,100.96,0.25]
[1645018772366,24.9649,101.05,100.96,0.25]
[1645018773168,40.50801885,101.04,100.96,0.25]
[1645018773973,0.25,101.04,100.97,98.08]
[1645018774372,0.25,101.04,100.95,24.83345308]
[1645018774572,2.69017527,101.04,100.95,24.83345308]
[1645018774773,7.64017527,101.04,100.95,24.83345308]
[1645018774974,44.71189273,101.03,100.95,24.83345308]
[1645018775173,14.8568,101.01,100.93,14.8568]
[1645018775375,22.4548,101.01,100.9,123.035]
[1645018775674,21.9548,101.01,100.9,123.035]
[1645018776275,57.26185676,101.01,100.91,134.22242494]
[1645018776480,49.66385676,101.01,100.91,149.08122494]
[1645018777276,49.66385676,101.01,100.91,134.22242494]
[1645018777480,2.44017527,101.0,100.91,36.14242494]
[1645018777677,34.71384232,100.99,100.91,36.14242494]
[1645018777878,55.57404232,100.99,100.91,36.14242494]
[1645018778077,6.0,100.99,100.91,134.22242494]
[1645018778778,6.0,100.99,100.93,14.8569]
[1645018778981,6.0,100.99,100.94,30.01183716]
[1645018779179,37.12490029,100.98,100.92,0.25]
[1645018779380,37.12490029,100.98,100.91,0.25]
[1645018779580,6.0,100.99,100.91,0.25]
[1645018779781,0.25,100.98,100.89,0.25]
[1645018780181,0.25,100.98,100.91,14.8604]
[1645018780381,0.25,100.98,100.92,0.25]
[1645018780581,0.25,100.98,100.92,44.26268637]
[1645018781280,20.8598,100.99,100.92,59.12138637]
[1645018781881,6.0,100.99,100.93,98.08]
[1645018782086,71.874,101.02,100.93,98.08]
[1645018782381,71.874,101.02,100.95,14.8545]
[1645018782585,39.40425779,101.01,100.94,22.14157573]
[1645018783287,0.25,101.0,100.94,22.14157573]
[1645018783684,0.25,101.0,100.94,120.22157573]
[1645018783884,48.2156,101.02,100.94,120.22157573]
[1645018784191,113.3608,101.07,100.94,120.22157573]
[1645018784384,5.63048363,101.06,100.95,0.25]
[1645018784585,40.8434998,101.06,100.95,0.25]
[1645018785185,55.6934998,101.06,100.96,14.8517]
[1645018785488,58.13367507,101.06,100.97,37.7738801]
[1645018785885,55.6934998,101.06,100.97,37.7738801]
[1645018786285,55.6934998,101.06,100.98,0.25]
[1645018787486,55.6934998,101.06,100.97,135.8538801]
[1645018787886,55.6934998,101.06,100.99,14.8486]
[1645018788088,55.6934998,101.06,101.0,28.380382]
[1645018788388,14.85,101.06,101.0,28.380382]
[1645018789392,14.8478,101.07,101.0,43.227782]
[1645018789614,41.88394567,101.06,101.0,28.380382]
[1645018790015,44.32412094,101.06,101.0,28.380382]
[1645018790416,0.25,101.05,101.0,28.380382]
[1645018791818,15.1007,101.05,101.0,28.380382]
[1645018792419,38.92132201,101.04,100.98,14.8488]
[1645018793224,15.1007,101.05,100.98,14.8488]
[1645018794323,15.1007,101.05,100.99,41.81031568]
[1645018794922,47.8615,101.07,100.99,154.73871568]
[1645018794923,62.7102,101.07,100.99,154.73871568]
[1645018795125,47.8615,101.07,100.99,154.73871568]
[1645018796324,47.8615,101.07,101.05,4.3086135]
[1645018796525,3.03219996,101.06,101.05,4.3086135]
[1645018797128,57.56678312,101.08,101.05,4.3086135]
[1645018797325,0.25,101.07,101.05,4.3086135]
[1645018799033,3.03219996,101.06,101.05,4.3086135]
[1645018800630,103.0,101.05,100.97,49.4911]
[1645018800830,103.0,101.05,100.95,22.506]
[1645018801032,105.44017527,101.05,100.93,23.157]
[1645018801435,4.95,101.04,100.93,23.157]
[1645018801632,37.44991758,101.03,100.94,39.9169985]
[1645018802235,17.29587527,101.02,100.94,39.9169985]
[1645018802432,36.16358482,101.01,100.94,39.9169985]
[1645018803035,38.60376009,101.01,100.89,23.2078]
[1645018803238,136.68376009,101.01,100.89,23.2078]
[1645018803836,159.20116009,101.01,100.89,23.2078]
[1645018804035,170.00116009,101.01,100.9,34.38204766]
[1645018804236,14.8582,101.0,100.9,34.38204766]
[1645018804437,36.8634779,100.98,100.9,34.38204766]
[1645018805840,14.8638,100.97,100.9,34.38204766]
[1645018806039,36.8634779,100.98,100.9,49.24304766]
[1645018806840,51.7241779,100.98,100.9,49.24304766]
[1645018807446,14.8607,100.98,100.9,49.24304766]
[1645018808542,14.8607,100.98,100.9,147.32304766]
[1645018808842,14.8607,100.98,100.9,49.24304766]
[1645018809245,37.11048985,100.97,100.9,49.24304766]
[1645018810544,37.11048985,100.97,100.91,98.08]
[1645018810745,14.8607,100.98,100.91,98.08]
[1645018811147,14.8607,100.98,100.9,49.24304766]
[1645018811349,14.8607,100.98,100.9,34.38204766]
[1645018811748,60.07826069,100.97,100.9,34.38204766]
[1645018812350,60.07826069,100.97,100.89,14.8631]
[1645018812754,66.00126069,100.97,100.86,75.8368]
[1645018812948,66.00126069,100.97,100.84,4.953]
[1645018812949,14.8681,100.94,100.84,4.953]
[1645018813149,22.0051,100.94,100.8,89.85738672]
[1645018813352,41.36919017,100.93,100.81,42.77800339]
[1645018813751,41.36919017,100.93,100.83,23.37625871]
[1645018813951,46.32619017,100.93,100.83,23.37625871]
[1645018814250,41.36919017,100.93,100.83,23.37625871]
[1645018814453,14.8712,100.92,100.83,23.37625871]
[1645018814851,34.62200981,100.91,100.83,23.37625871]
[1645018815655,39.12908506,100.89,100.83,23.37625871]
[1645018815859,39.12908506,100.89,100.8,122.9735]
[1645018816052,39.12908506,100.89,100.8,98.08]
[1645018816454,39.12908506,100.89,100.78,362.92937119]
[1645018816854,39.12908506,100.89,100.81,125.82182846]
[1645018817252,39.12908506,100.89,100.82,0.25]
[1645018817954,14.8736,100.9,100.82,0.25]
[1645018818356,63.0124,100.92,100.82,0.25]
[1645018818556,4.956,100.95,100.82,2.49263699]
[1645018818755,71.8773,100.96,100.83,98.08]
[1645018818961,42.30093561,100.94,100.84,136.49243364]
[1645018819155,42.30093561,100.94,100.84,138.73507063]
[1645018819356,42.30093561,100.94,100.85,115.43993699]
[1645018819555,86.7433,100.96,100.87,27.74182846]
[1645018819758,86.7433,100.96,100.87,125.82182846]
[1645018819960,86.7433,100.96,100.87,27.74182846]
[1645018820659,41.91684765,100.95,100.87,27.74182846]
[1645018820858,41.91684765,100.95,100.87,42.60622846]
[1645018821661,0.25,100.94,100.87,42.60622846]
[1645018821860,4.954,100.97,100.88,0.25]
[1645018822063,14.8629,100.98,100.88,0.25]
[1645018822260,14.8629,100.98,100.89,14.8612]
[1645018822863,40.10213042,100.97,100.9,37.55355345]
[1645018823281,0.25,100.96,100.9,37.55355345]
[1645018823479,0.25,100.96,100.9,150.49415345]
[1645018824081,14.8629,100.98,100.9,150.49415345]
[1645018824480,52.91636834,100.98,100.9,150.49415345]
[1645018824981,38.05346834,100.98,100.9,150.49415345]
[1645018825383,0.25,100.97,100.9,52.41415345]
[1645018825982,0.25,100.97,100.92,28.85070865]
[1645018827081,0.25,100.97,100.91,14.8599]
[1645018827486,0.25,100.97,100.89,14.8619]
[1645018827888,0.25,100.97,100.86,97.3164]
[1645018828282,34.68379742,100.97,100.87,41.90878936]
[1645018828889,49.54689742,100.97,100.88,0.25]
[1645018829387,49.54689742,100.97,100.95,4.3238574]
[1645018829585,3.03219996,100.96,100.95,4.3238574]
[1645018829985,17.89729996,100.96,100.95,4.3238574]
[1645018830188,15.39729996,100.96,100.95,4.3238574]
[1645018830387,127.32,100.95,100.87,14.8647]
[1645018830587,133.477,100.95,100.85,14.8677]
[1645018830788,135.91717527,100.95,100.81,49.6598]
[1645018830994,14.8703,100.92,100.82,109.95]
[1645018831390,37.48174995,100.91,100.83,42.01232075]
[1645018831989,37.48174995,100.91,100.85,28.46579875]
[1645018832395,150.43334995,100.91,100.79,137.38]
[1645018832590,4.956,100.9,100.79,113.5]
[1645018832791,4.956,100.9,100.78,78.9162]
[1645018832992,2.44017527,100.89,100.78,78.9162]
[1645018833293,41.55830321,100.88,100.79,41.4821782]
[1645018833493,14.8786,100.87,100.78,14.8792]
[1645018833693,14.8786,100.87,100.74,183.6761]
[1645018833892,63.9453,100.87,100.74,183.6761]
[1645018834091,70.4813,100.87,100.74,185.91873699]
[1645018834291,72.92147527,100.87,100.74,281.7561]
[1645018834491,34.91805777,100.86,100.75,133.07278968]
[1645018834701,39.87805777,100.86,100.75,133.07278968]
[1645018834892,46.96293664,100.82,100.77,35.48532982]
[1645018835598,46.96293664,100.82,100.74,98.08]
[1645018836097,46.96293664,100.82,100.75,14.8836]
[1645018836498,46.96293664,100.82,100.76,46.59800141]
[1645018837899,14.8834,100.83,100.76,144.67800141]
[1645018838297,49.6107,100.86,100.76,159.55980141]
[1645018838699,49.0667,100.87,100.76,161.8024384]
[1645018838900,43.0441242,100.86,100.77,0.25]
[1645018839302,43.0441242,100.86,100.77,2.49263699]
[1645018839503,43.0441242,100.86,100.78,121.96011809]
[1645018839900,43.0441242,100.86,100.79,15.1276]
[1645018840100,43.0441242,100.86,100.8,34.39369983]
[1645018841103,49.5907,100.9,100.8,132.47369983]
[1645018841305,14.8758,100.88,100.8,49.26979983]
[1645018841704,23.6284,100.91,100.81,0.25]
[1645018842104,38.61981163,100.9,100.81,0.25]
[1645018842905,0.25,100.89,100.82,14.8736]
[1645018843107,53.49371163,100.9,100.82,50.95801967]
[1645018843407,53.49371163,100.9,100.83,0.25]
[1645018844313,53.49371163,100.9,100.78,2.2370829]
[1645018844509,2.44017527,100.89,100.75,98.3144]
[1645018844710,14.8819,100.85,100.75,98.3144]
[1645018844908,21.8879,100.85,100.73,46.1516]
[1645018845111,7.40017527,100.84,100.73,46.1516]
[1645018845311,43.25267788,100.83,100.74,37.11244832]
[1645018845509,45.69285315,100.83,100.74,37.11244832]
[1645018845708,43.25267788,100.83,100.74,37.11244832]
[1645018845911,58.13747788,100.83,100.74,37.11244832]
[1645018847208,58.13747788,100.83,100.74,135.19244832]
[1645018847410,58.13747788,100.83,100.75,0.25]
[1645018847610,43.25267788,100.83,100.75,0.25]
[1645018848613,43.25267788,100.83,100.75,98.33]
[1645018848811,58.13677788,100.83,100.74,51.99654832]
[1645018849110,58.13677788,100.83,100.74,37.11244832]
[1645018849312,4.961,100.84,100.75,0.25]
[1645018849534,54.8505,100.86,100.75,98.33]
[1645018849535,49.0585,100.86,100.75,98.33]
[1645018849711,49.0585,100.86,100.75,0.25]
[1645018849914,0.25,100.85,100.75,0.25]
[1645018850613,15.1311,100.85,100.76,14.8812]
[1645018850818,15.1311,100.85,100.77,33.61567118]
[1645018850819,39.21637895,100.84,100.77,33.61567118]
[1645018851016,14.8811,100.85,100.77,33.61567118]
[1645018851214,49.0585,100.86,100.77,33.61567118]
[1645018852017,58.72981506,100.85,100.77,33.61567118]
[1645018852213,6.0,100.84,100.77,33.36567118]
[1645018852415,6.0,100.84,100.73,47.5125]
[1645018852614,10.961,100.84,100.73,47.5125]
[1645018852814,0.25,100.83,100.74,0.25]
[1645018853417,48.92033452,100.83,100.74,37.10786181]
[1645018853619,14.8855,100.82,100.74,37.10786181]
[1645018853815,39.77018645,100.81,100.74,37.10786181]
[1645018854418,14.8855,100.82,100.74,135.18786181]
[1645018854618,0.25,100.83,100.74,135.18786181]
[1645018854821,0.25,100.83,100.74,150.07216181]
[1645018855218,6.0,100.84,100.74,150.07216181]
[1645018855419,6.0,100.84,100.74,161.94216181]
[1645018855618,48.43724811,100.85,100.74,161.94216181]
[1645018855823,6.25,100.84,100.74,161.94216181]
[1645018856021,46.05194617,100.83,100.74,161.94216181]
[1645018856719,6.25,100.84,100.74,161.94216181]
[1645018857819,21.132,100.84,100.74,161.94216181]
[1645018859621,37.06340008,100.83,100.74,161.69216181]
[1645018860024,14.8863,100.81,100.72,14.8876]
[1645018860226,98.08,100.8,100.66,67.18767028]
[1645018860529,165.98547527,100.8,100.65,3.40801801]
[1645018860723,7.40417527,100.79,100.65,0.61631592]
[1645018860924,20.63791842,100.79,100.65,0.61631592]
[1645018861124,14.8971,100.76,100.66,36.69061722]
[1645018861326,22.6381,100.76,100.67,0.25]
[1645018861529,47.33522018,100.75,100.66,36.69061722]
[1645018862325,14.8986,100.73,100.66,36.69061722]
[1645018862525,20.9436,100.73,100.66,36.69061722]
[1645018862726,56.85034995,100.73,100.66,36.69061722]
[1645018864549,20.9436,100.73,100.66,36.69061722]
[1645018864725,14.8986,100.73,100.66,36.69061722]
[1645018865127,11.87,100.76,100.66,36.69061722]
[1645018865330,14.8966,100.75,100.67,0.25]
[1645018865526,47.70688302,100.74,100.67,0.25]
[1645018866130,16.834,100.79,100.67,0.25]
[1645018866327,11.87,100.79,100.67,0.25]
[1645018866530,11.87,100.79,100.67,98.33]
[1645018866928,44.28656204,100.78,100.67,0.25]
[1645018867129,14.8937,100.77,100.67,15.1448]
[1645018867331,34.79841387,100.76,100.67,0.25]